fUST/lending_fUST_20240927
["ID","MTS","AMOUNT","RATE_DAILY","PERIOD"]
[339233030,1727385043228,-1196.3,0.00021999,7]
[339233031,1727385043237,-502.04151892,0.00021999,120]
[339233032,1727385043251,-1196.3,0.00021999,7]
[339233033,1727385043260,-1196.3,0.00021999,7]
[339233034,1727385043269,-1196.3,0.00021999,7]
[339233035,1727385043278,-1196.3,0.00021999,7]
[339233036,1727385043288,-501.82126435,0.00021999,120]
[339233037,1727385043297,-1196.3,0.00021999,7]
[339233038,1727385043307,-1196.3,0.00021999,7]
[339233039,1727385043318,-1196.3,0.00021999,7]
[339233040,1727385043328,-1196.42293265,0.00021999,7]
[339233041,1727385043338,-500.0,0.00021999,120]
[339233042,1727385043347,-162.61424482,0.00021999,120]
[339233043,1727385043357,-500.0,0.00021999,120]
[339233044,1727385043367,-509.35448854,0.00021999,120]
[339233045,1727385043377,-502.55736432,0.00021999,120]
[339233046,1727385043386,-1131.11,0.00021999,2]
[339233047,1727385043395,-1131.11,0.00021999,2]
[339233048,1727385043406,-1131.11,0.00021999,2]
[339233049,1727385043415,-1131.11,0.00021999,2]
[339233050,1727385043424,-151.0,0.00021999,7]
[339233051,1727385043434,-1131.11,0.00021999,2]
[339233052,1727385043444,-1131.11,0.00021999,2]
[339233053,1727385043453,-1131.11,0.00021999,2]
[339233054,1727385043463,-1131.11,0.00021999,2]
[339233055,1727385043472,-500.0,0.00021999,120]
[339233056,1727385043481,-500.0,0.00021999,120]
[339233057,1727385043490,-1131.11,0.00021999,2]
[339233058,1727385043500,-502.7753136,0.00021999,120]
[339233059,1727385043509,-597.74310965,0.00021999,120]
[339233060,1727385043518,-1131.11,0.00021999,2]
[339233061,1727385043527,-1000.0,0.00021999,2]
[339233062,1727385043536,-1131.11,0.00021999,2]
[339233063,1727385043546,-1000.0,0.00021999,2]
[339233064,1727385043555,-1131.11,0.00021999,2]
[339233065,1727385043564,-1000.0,0.00021999,2]
[339233066,1727385043573,-1131.11,0.00021999,2]
[339233067,1727385043583,-500.0,0.00021999,120]
[339233068,1727385043592,-1000.0,0.00021999,2]
[339233069,1727385043601,-58.82171083,0.00021999,2]
[339233070,1727385043620,-647.9,0.00021999,2]
[339233071,1727385043631,-424.38828917,0.00021999,2]
[339233072,1727385043640,-1000.0,0.00021999,2]
[339233073,1727385043649,-500.0,0.00021999,120]
[339233074,1727385043659,-500.0,0.00021999,120]
[339233075,1727385043668,-1000.0,0.00021999,2]
[339233076,1727385043677,-1131.11,0.00021999,2]
[339233077,1727385043686,-1000.0,0.00021999,2]
[339233078,1727385043695,-500.0,0.00021999,120]
[339233079,1727385043704,-1131.11,0.00021999,2]
[339233080,1727385043713,-1000.0,0.00021999,2]
[339233081,1727385043827,-500.0,0.00021999,120]
[339233082,1727385043837,-1131.11,0.00021999,2]
[339233083,1727385043846,-1000.0,0.00021999,2]
[339233084,1727385043856,-500.0,0.00021999,120]
[339233085,1727385043865,-1131.11,0.00021999,2]
[339233086,1727385043874,-1000.0,0.00021999,2]
[339233087,1727385043884,-1131.11,0.00021999,2]
[339233088,1727385043893,-500.0,0.00021999,120]
[339233089,1727385043902,-1000.0,0.00021999,2]
[339233090,1727385043913,-1131.11,0.00021999,2]
[339233091,1727385043923,-294.76428628,0.00021999,120]
[339233092,1727385043933,-1000.0,0.00021999,2]
[339233093,1727385043944,-1131.11,0.00021999,2]
[339233094,1727385043955,-1000.0,0.00021999,2]
[339233095,1727385043965,-1000.0,0.00021999,2]
[339233096,1727385043975,-1000.0,0.00021999,2]
[339233097,1727385043984,-1131.11,0.00021999,2]
[339233098,1727385043993,-823.04930999,0.00021999,2]
[339233121,1727385950177,-158.72690404,0.00018058,2]
[339233122,1727385950199,-301.22470415,0.00018909,2]
[339233124,1727386038170,-166.666666,0.00018643,2]
[339233125,1727386038194,-542.02162517,0.00018909,2]
[339233126,1727386038221,-186.2,0.000196,2]
[339233127,1727386038244,-483.91231647,0.00019855,2]
[339233128,1727386038268,-427.378548,0.00019973,2]
[339233129,1727386042221,-72.621452,0.00019973,2]
[339233130,1727386042242,-197.89655371,0.00019973,2]
[339233131,1727386048144,-302.10344629,0.00019973,2]
[339233132,1727386048166,-300.0,0.00019998,2]
[339233133,1727386048186,-300.0,0.00019998,2]
[339233134,1727386048207,-162.54855797,0.00019999,2]
[339233135,1727386048228,-570.0,0.00019999,2]
[339233136,1727386048248,-157.13941931,0.00019999,2]
[339233137,1727386048271,-500.0,0.00019999,2]
[339233138,1727386048295,-180.72343068,0.00019999,2]
[339233144,1727386162458,211.55033424,0.00018163,2]
[339233145,1727386169133,-99.83139111,0.00018163,2]
[339233183,1727386232407,-199.31,0.000197,2]
[339233184,1727386232416,-84.12650347,0.00019873,2]
[339233185,1727386232428,-382.91512159,0.00019873,2]
[339233186,1727386232440,-7728.67008357,0.00019873,2]
[339233187,1727386232449,-252.20915438,0.00019898,2]
[339233188,1727386232458,-2714.3654791,0.00019898,2]
[339233189,1727386232467,-501.87737867,0.00019973,2]
[339233191,1727386232476,-500.0,0.00019973,2]
[339233193,1727386232485,-300.0,0.00019989,2]
[339233195,1727386232494,-300.0,0.00019989,2]
[339233197,1727386232504,-448.58,0.0001999,3]
[339233198,1727386232513,-1606.91498367,0.0001999,3]
[339233199,1727386232523,-3597.38995281,0.0001999,3]
[339233243,1727386238671,-500.0,0.00019989,2]
[339233245,1727386238681,-498.32512,0.00019989,2]
[339233298,1727386240173,-1.67488,0.00019989,2]
[339233299,1727386240182,-500.0,0.00019989,2]
[339233300,1727386240191,-350.81685482,0.00019989,2]
[339233301,1727386240234,-149.18314518,0.00019989,2]
[339233302,1727386240243,-500.0,0.00019989,2]
[339233303,1727386240253,-500.0,0.00019989,2]
[339233304,1727386240262,-500.0,0.00019989,2]
[339233305,1727386240273,-500.0,0.00019989,2]
[339233306,1727386240282,-500.0,0.00019989,2]
[339233307,1727386240291,-500.0,0.00019989,2]
[339233308,1727386240308,-144.31685504,0.00019989,2]
[339233309,1727386240324,-355.68314496,0.00019989,2]
[339233310,1727386240334,-500.0,0.00019989,2]
[339233312,1727386240344,-500.0,0.00019989,2]
[339233314,1727386240354,-500.0,0.00019989,2]
[339233316,1727386240364,-500.0,0.00019989,2]
[339233318,1727386240374,-500.0,0.00019989,2]
[339233320,1727386240383,-500.0,0.00019989,2]
[339233321,1727386240393,-500.0,0.00019989,2]
[339233323,1727386240402,-500.0,0.00019989,2]
[339233324,1727386240411,-500.0,0.00019989,2]
[339233325,1727386240421,-500.0,0.00019989,2]
[339233326,1727386240430,-500.0,0.00019989,2]
[339233327,1727386240439,-500.0,0.00019989,2]
[339233328,1727386240449,-500.0,0.00019989,2]
[339233329,1727386240458,-500.0,0.00019989,2]
[339233330,1727386240468,-500.0,0.00019989,2]
[339233331,1727386240477,-500.0,0.00019989,2]
[339233332,1727386240487,-500.0,0.00019989,2]
[339233333,1727386240496,-500.0,0.00019989,2]
[339233334,1727386240505,-500.0,0.00019989,2]
[339233335,1727386240515,-500.0,0.00019989,2]
[339233336,1727386240534,-500.0,0.00019989,2]
[339233337,1727386240544,-500.0,0.00019989,2]
[339233338,1727386240554,-639.04457306,0.00019989,2]
[339233339,1727386240564,-31430.50361299,0.0001999,3]
[339233340,1727386240574,-571.3696288,0.00019999,2]
[339233341,1727386240583,-340.99566752,0.00019999,2]
[339233342,1727386240593,-500.0,0.00019999,2]
[339233343,1727386240602,-500.0,0.00019999,2]
[339233344,1727386240611,-500.0,0.00019999,2]
[339233345,1727386240622,-500.0,0.00019999,2]
[339233346,1727386240631,-500.0,0.00019999,2]
[339233347,1727386240641,-206.84796877,0.00019999,2]
[339233348,1727386240651,-86928.2261345,0.0002,2]
[339233349,1727386240661,-156.93154201,0.0002,2]
[339233350,1727386240671,-666.3516251,0.00020027,2]
[339233351,1727386240681,-252.20915436,0.00020378,2]
[339233352,1727386240690,-1000.0,0.00020521,2]
[339233353,1727386240700,-500.0,0.00020521,2]
[339233354,1727386240710,-151.0,0.00020764,2]
[339233355,1727386240719,-465.94561582,0.00020848,2]
[339233356,1727386240729,-252.20915436,0.00020858,2]
[339233357,1727386240738,-152.68017911,0.00020899,2]
[339233358,1727386240747,-1217.0,0.00020976,2]
[339233359,1727386240760,-11598.877,0.00020976,2]
[339233360,1727386240770,-500.0,0.00021,30]
[339233361,1727386240780,-500.0,0.00021,30]
[339233362,1727386240790,-500.0,0.00021,30]
[339233363,1727386240799,-500.0,0.00021,30]
[339233364,1727386240809,-500.0,0.00021,30]
[339233365,1727386240818,-500.0,0.00021,30]
[339233366,1727386240828,-700.0,0.00021,30]
[339233367,1727386240837,-234.10467923,0.00021,2]
[339233368,1727386240847,-500.0,0.00021,30]
[339233369,1727386240856,-500.0,0.00021,30]
[339233370,1727386240866,-500.0,0.00021,30]
[339233371,1727386240875,-500.0,0.00021,30]
[339233372,1727386240884,-500.0,0.00021,30]
[339233373,1727386240893,-276.82944441,0.00021,30]
[339233374,1727386240902,-508.1342584,0.00021,30]
[339233375,1727386240912,-539.59614278,0.00021,30]
[339233376,1727386240922,-500.0,0.00021,30]
[339233377,1727386240932,-500.0,0.00021,30]
[339233378,1727386240941,-500.0,0.00021,30]
[339233379,1727386240950,-500.0,0.00021,30]
[339233380,1727386240959,-355.23846113,0.00021067,2]
[339233381,1727386240969,-151.0,0.00021073,2]
[339233382,1727386240978,-500.0,0.000211,2]
[339233383,1727386240987,-237.31274631,0.0002114,2]
[339233384,1727386240997,-166.666666,0.00021184,2]
[339233385,1727386241006,-153.0,0.00021194,2]
[339233386,1727386241018,-153.0,0.00021194,2]
[339233387,1727386241030,-153.0,0.00021194,2]
[339233388,1727386241040,-153.0,0.00021194,2]
[339233389,1727386241049,-153.0,0.00021195,2]
[339233390,1727386241059,-153.0,0.00021195,2]
[339233391,1727386241069,-153.0,0.00021195,2]
[339233392,1727386241080,-153.0,0.00021195,2]
[339233393,1727386241090,-153.0,0.00021195,2]
[339233394,1727386241100,-153.0,0.00021197,2]
[339233395,1727386241110,-153.0,0.00021197,2]
[339233396,1727386241121,-153.0,0.00021197,2]
[339233397,1727386241131,-153.0,0.00021197,2]
[339233398,1727386241140,-153.0,0.00021198,2]
[339233399,1727386241149,-153.0,0.00021198,2]
[339233400,1727386241159,-153.0,0.00021198,2]
[339233401,1727386241168,-153.0,0.00021198,2]
[339233402,1727386241350,-153.0,0.00021198,2]
[339233403,1727386241359,-506.75742959,0.000212,2]
[339233404,1727386241369,-252.20915436,0.00021338,2]
[339233405,1727386241378,-151.0,0.00021382,2]
[339233406,1727386241388,-153.0,0.00021507,2]
[339233407,1727386241397,-153.0,0.00021507,2]
[339233408,1727386241406,-153.0,0.00021507,2]
[339233409,1727386241415,-154.79661188,0.00021519,2]
[339233410,1727386241424,-500.0,0.00021648,2]
[339233411,1727386241433,-151.0,0.0002169,2]
[339233412,1727386241443,-420.0,0.00021766,2]
[339233413,1727386241452,-252.20915436,0.00021818,2]
[339233414,1727386241462,-3624.50595904,0.00021833,2]
[339233415,1727386241471,-1606.91498367,0.00021889,3]
[339233416,1727386241480,-35027.8935658,0.00021889,3]
[339233417,1727386241489,-3848.0,0.00021899,2]
[339233418,1727386241499,-1886.51675409,0.00021899,2]
[339233419,1727386241508,-152.66,0.000219,31]
[339233420,1727386241518,-152.66,0.000219,31]
[339233421,1727386241528,-152.66,0.000219,31]
[339233422,1727386241537,-152.66,0.000219,31]
[339233423,1727386241546,-152.66,0.000219,31]
[339233424,1727386241555,-152.66,0.000219,31]
[339233425,1727386241565,-152.66,0.000219,31]
[339233426,1727386241574,-152.66,0.000219,31]
[339233427,1727386241583,-152.66,0.000219,31]
[339233428,1727386241593,-152.66,0.000219,31]
[339233429,1727386241602,-152.66,0.000219,31]
[339233430,1727386241611,-152.66,0.000219,31]
[339233431,1727386241620,-152.66,0.000219,31]
[339233432,1727386241629,-152.66,0.000219,31]
[339233433,1727386241639,-7016.37522707,0.000219,2]
[339233434,1727386241653,-12854.97397611,0.000219,2]
[339233435,1727386241663,-163.75661155,0.00021918,2]
[339233436,1727386241672,-162.99977977,0.0002192,7]
[339233437,1727386241684,-162.99977977,0.0002192,7]
[339233438,1727386241694,-162.99977977,0.0002192,7]
[339233439,1727386241705,-162.99977977,0.0002192,7]
[339233440,1727386241715,-162.99977977,0.0002192,7]
[339233441,1727386241725,-162.99977977,0.0002192,7]
[339233442,1727386241735,-163.49,0.0002192,7]
[339233443,1727386241746,-6427.65993468,0.00021958,3]
[339233444,1727386241757,-24138.92855125,0.00021958,3]
[339233483,1727386246351,-153.0,0.00021192,2]
[339233484,1727386246360,-153.0,0.00021192,2]
[339233485,1727386246370,-8205.26409963,0.00021958,3]
[339233488,1727386246409,-28.2177118,0.00021958,3]
[339233582,1727387075183,155.0,0.00014111,2]
[339233583,1727387079949,155.0,0.00014111,2]
[339233584,1727387084699,155.0,0.00014111,2]
[339233585,1727387089742,155.0,0.00014111,2]
[339233586,1727387094352,155.0,0.00014111,2]
[339233587,1727387101384,155.0,0.00014111,2]
[339233588,1727387106021,155.0,0.00014111,2]
[339233589,1727387110936,155.0,0.00014111,2]
[339233590,1727387115608,155.0,0.00014111,2]
[339233591,1727387120454,240.20603817,0.00014111,2]
[339233593,1727387135144,-215.86702761,0.00018163,2]
[339233594,1727387135165,-14.54661814,0.00018601,2]
[339233604,1727387143129,-220.56055986,0.00018601,2]
[339233605,1727387143151,-230.801456,0.00019426,2]
[339233606,1727387143173,-0.50993,0.00019654,2]
[339233607,1727387241127,-553.8606174,0.00018501,2]
[339233608,1727387241187,-727.10914006,0.00018501,2]
[339233610,1727387347154,-6447.70032611,0.00018501,2]
[339233611,1727387362153,-238.59735194,0.00019007,2]
[339233733,1727387438903,-2.01381466,0.00019007,2]
[339233735,1727387438914,-300.0,0.00019653,2]
[339233736,1727387438924,-300.0,0.00019653,2]
[339233737,1727387438935,-160.116916,0.00019654,2]
[339233738,1727387438946,-447.86926935,0.00019654,2]
[339233741,1727387439072,-23968.04220955,0.00019654,2]
[339233742,1727387439084,-160.626846,0.00019782,2]
[339233743,1727387439095,-179.38,0.000198,2]
[339233744,1727387439107,-160.626846,0.0001991,2]
[339233745,1727387439117,-237.31274631,0.00019999,2]
[339233746,1727387439129,-160.626846,0.00020038,2]
[339233747,1727387439139,-160.626846,0.00020166,2]
[339233748,1727387439149,-185.671834,0.00020255,2]
[339233749,1727387439159,-160.626846,0.00020294,2]
[339233751,1727387439168,-3093.15313071,0.00020322,2]
[339233753,1727387439177,-160.626846,0.00020422,2]
[339233754,1727387439186,-160.626846,0.0002055,2]
[339233755,1727387439195,-160.626846,0.00020678,2]
[339233756,1727387439204,-151.0,0.00020791,2]
[339233757,1727387439213,-152.68017911,0.00020899,2]
[339233758,1727387439222,-500.0,0.00020999,2]
[339233759,1727387439231,-500.0,0.00020999,2]
[339233760,1727387439240,-500.0,0.00020999,2]
[339233761,1727387439250,-500.0,0.00020999,2]
[339233762,1727387439259,-500.0,0.00020999,2]
[339233763,1727387439268,-500.0,0.00020999,2]
[339233764,1727387439277,-213.90445731,0.00020999,2]
[339233765,1727387439287,-500.0,0.00020999,2]
[339233766,1727387439296,-500.0,0.00020999,2]
[339233767,1727387439305,-500.0,0.00020999,2]
[339233768,1727387439315,-500.0,0.00020999,2]
[339233769,1727387439324,-500.0,0.00020999,2]
[339233770,1727387439333,-500.0,0.00020999,2]
[339233771,1727387439343,-500.0,0.00020999,2]
[339233772,1727387439352,-500.0,0.00020999,2]
[339233773,1727387439362,-5000.0,0.00021,2]
[339233774,1727387439371,-500.0,0.00021,30]
[339233775,1727387439382,-500.0,0.00021,30]
[339233776,1727387439391,-500.0,0.00021,30]
[339233777,1727387439400,-500.0,0.00021,30]
[339233778,1727387439410,-500.0,0.00021,30]
[339233779,1727387439419,-500.0,0.00021,30]
[339233780,1727387439428,-700.0,0.00021,30]
[339233781,1727387439438,-500.0,0.00021,30]
[339233782,1727387439447,-500.0,0.00021,30]
[339233783,1727387439456,-500.0,0.00021,30]
[339233784,1727387439465,-500.0,0.00021,30]
[339233785,1727387439476,-500.0,0.00021,30]
[339233786,1727387439485,-539.59614278,0.00021,30]
[339233787,1727387439495,-276.82944441,0.00021,30]
[339233788,1727387439504,-500.0,0.00021,30]
[339233789,1727387439514,-500.0,0.00021,30]
[339233790,1727387439528,-500.0,0.00021,30]
[339233791,1727387439537,-508.1342584,0.00021,30]
[339233792,1727387439547,-500.0,0.00021,30]
[339233793,1727387439556,-151.0,0.00021093,2]
[339233794,1727387439566,-153.0,0.00021176,2]
[339233795,1727387439575,-153.0,0.00021176,2]
[339233796,1727387439585,-153.0,0.00021176,2]
[339233797,1727387439595,-153.0,0.00021176,2]
[339233798,1727387439604,-153.0,0.00021178,2]
[339233799,1727387439615,-153.0,0.00021178,2]
[339233800,1727387439624,-153.0,0.00021178,2]
[339233801,1727387439634,-153.0,0.00021179,2]
[339233802,1727387439643,-153.0,0.00021179,2]
[339233803,1727387439652,-153.0,0.00021179,2]
[339233804,1727387439661,-153.0,0.00021179,2]
[339233805,1727387439671,-153.0,0.00021181,2]
[339233806,1727387439680,-153.0,0.00021181,2]
[339233807,1727387439690,-153.0,0.00021181,2]
[339233808,1727387439700,-1217.0,0.00021268,2]
[339233809,1727387439709,-11598.877,0.00021268,2]
[339233810,1727387439718,-252.20915438,0.00021295,2]
[339233811,1727387439728,-151.0,0.00021395,2]
[339233812,1727387439737,-420.0,0.00021408,2]
[339233813,1727387439746,-252.20915436,0.0002144,2]
[339233814,1727387439760,-580.32631281,0.00021484,2]
[339233815,1727387439773,-252.20915436,0.00021584,2]
[339233816,1727387439787,-154.79661188,0.00021589,2]
[339233817,1727387439801,-420.0,0.00021618,2]
[339233819,1727387439815,-3624.50595904,0.00021655,2]
[339233820,1727387439828,-151.0,0.00021697,2]
[339233821,1727387439841,-252.20915436,0.00021729,2]
[339233822,1727387439853,-1000.0,0.00021814,2]
[339233823,1727387439867,-252.20915436,0.00021873,2]
[339233824,1727387439880,-155.34414508,0.0002189,2]
[339233825,1727387439891,-153.0,0.0002189,2]
[339233826,1727387439905,-1000.0,0.00021896,2]
[339233827,1727387439917,-3848.0,0.00021899,2]
[339233828,1727387439929,-2073.09533415,0.00021899,2]
[339233829,1727387439944,-1000.0,0.000219,2]
[339233830,1727387439956,-152.65,0.000219,31]
[339233831,1727387439968,-152.65,0.000219,31]
[339233832,1727387439980,-152.65,0.000219,31]
[339233833,1727387439991,-152.65,0.000219,31]
[339233834,1727387440003,-152.65,0.000219,31]
[339233835,1727387440016,-152.65,0.000219,31]
[339233836,1727387440027,-152.65,0.000219,31]
[339233837,1727387440038,-152.65,0.000219,31]
[339233838,1727387440049,-152.65,0.000219,31]
[339233839,1727387440061,-152.65,0.000219,31]
[339233840,1727387440072,-152.65,0.000219,31]
[339233841,1727387440084,-152.65,0.000219,31]
[339233843,1727387440095,-152.65,0.000219,31]
[339233844,1727387440106,-152.65,0.000219,31]
[339233845,1727387440117,-3392.0,0.000219,7]
[339233847,1727387440127,-448.58,0.00021919,3]
[339233848,1727387440137,-171.1534147,0.0002192,7]
[339233849,1727387440147,-171.1534147,0.0002192,7]
[339233850,1727387440158,-171.1534147,0.0002192,7]
[339233851,1727387440169,-171.1534147,0.0002192,7]
[339233852,1727387440179,-171.1534147,0.0002192,7]
[339233853,1727387440203,-171.1534147,0.0002192,7]
[339233854,1727387440218,-171.65,0.0002192,7]
[339233855,1727387440232,-239.68978058,0.0002192,7]
[339233856,1727387440247,-239.68978058,0.0002192,7]
[339233857,1727387440260,-239.68978058,0.0002192,7]
[339233859,1727387440273,-239.68978058,0.0002192,7]
[339233861,1727387440288,-239.68978058,0.0002192,7]
[339233862,1727387440301,-239.68978058,0.0002192,7]
[339233863,1727387440314,-239.68978058,0.0002192,7]
[339233864,1727387440328,-239.68978058,0.0002192,7]
[339233865,1727387440339,-239.68978058,0.0002192,7]
[339233866,1727387440351,-239.68978058,0.0002192,7]
[339233867,1727387440361,-239.68978058,0.0002192,7]
[339233868,1727387440371,-239.68978058,0.0002192,7]
[339233869,1727387440381,-239.68978058,0.0002192,7]
[339233870,1727387440392,-239.68978058,0.0002192,7]
[339233871,1727387440403,-239.68978058,0.0002192,7]
[339233872,1727387440415,-239.68978058,0.0002192,7]
[339233873,1727387440428,-239.68978058,0.0002192,7]
[339233874,1727387440440,-239.68978058,0.0002192,7]
[339233875,1727387440452,-239.68978058,0.0002192,7]
[339233876,1727387440462,-240.18,0.0002192,7]
[339233877,1727387440472,-176.59,0.0002192,7]
[339233878,1727387440485,-238.69696726,0.00021928,2]
[339233879,1727387440496,-500.0,0.00021928,2]
[339233880,1727387440507,-399.95874016,0.00021928,2]
[339233881,1727387440519,-500.0,0.00021928,2]
[339233882,1727387440532,-500.0,0.00021928,2]
[339233883,1727387440542,-394.79357813,0.00021928,2]
[339233884,1727387440552,-52386.597295,0.00021929,3]
[339233885,1727387440563,-32575.2755817,0.00021929,3]
[339233886,1727387440573,-1000.0,0.00021933,2]
[339233887,1727387440583,-500.0,0.00021938,2]
[339233888,1727387440593,-7707.77123975,0.00021958,2]
[339233889,1727387440603,-7357.19061799,0.00021958,2]
[339233890,1727387440614,-209546.38918,0.00021958,3]
[339233891,1727387440626,-130301.102327,0.00021958,3]
[339233892,1727387440637,-52386.597295,0.00021969,3]
[339233893,1727387440649,-32575.2755817,0.00021969,3]
[339233894,1727387440660,-534.58287951,0.00021973,2]
[339233895,1727387440671,-500.0,0.00021973,2]
[339233896,1727387440685,-431.74563962,0.00021973,2]
[339233897,1727387440697,-500.0,0.00021973,2]
[339233898,1727387440709,-501.87737867,0.00021973,2]
[339233899,1727387440720,-500.0,0.00021973,2]
[339233900,1727387440731,-750.99,0.00021978,2]
[339233901,1727387440742,-750.99,0.00021978,2]
[339233902,1727387440753,-750.99,0.00021978,2]
[339233903,1727387440765,-750.99,0.00021978,2]
[339233904,1727387440781,-750.99,0.00021978,2]
[339233905,1727387440793,-750.99,0.00021978,2]
[339233906,1727387440805,-750.99,0.00021978,2]
[339233907,1727387440817,-750.99,0.00021978,2]
[339233908,1727387440828,-750.99,0.00021978,2]
[339233909,1727387440839,-750.99,0.00021978,2]
[339233910,1727387440850,-750.99,0.00021978,2]
[339233911,1727387440861,-750.99,0.00021978,2]
[339233912,1727387440873,-750.99,0.00021978,2]
[339233913,1727387440885,-750.99,0.00021978,2]
[339233914,1727387440897,-750.99,0.00021978,2]
[339233915,1727387440909,-750.99,0.00021978,2]
[339233916,1727387440919,-750.99,0.00021978,2]
[339233917,1727387440931,-750.99,0.00021978,2]
[339233918,1727387440943,-750.99,0.00021978,2]
[339233919,1727387440953,-750.99,0.00021978,2]
[339233920,1727387440965,-750.99,0.00021978,2]
[339233921,1727387440975,-750.99,0.00021978,2]
[339233922,1727387440986,-750.99,0.00021978,2]
[339233923,1727387440997,-751.15171098,0.00021978,2]
[339233924,1727387441008,-65150.5511635,0.00021979,3]
[339233925,1727387441019,-166.026231,0.00021979,7]
[339233926,1727387441030,-151.0,0.00021979,7]
[339233927,1727387441040,-50935.68769413,0.00021989,3]
[339233928,1727387441198,-4925.29999922,0.00021989,3]
[339233929,1727387441211,-9289.56347015,0.00021989,3]
[339233930,1727387441222,-336.0,0.0002199,5]
[339233931,1727387441232,-204.3582581,0.00021998,2]
[339233932,1727387441243,-2263.74942531,0.00021998,2]
[339233933,1727387441255,-160.0,0.00021998,2]
[339233934,1727387441266,-160.0,0.00021998,2]
[339233935,1727387441277,-160.0,0.00021998,2]
[339233936,1727387441287,-308.73225216,0.00021998,2]
[339233937,1727387441297,-151.0,0.00021999,7]
[339233938,1727387441309,-151.0,0.00021999,7]
[339233939,1727387441319,-151.0,0.00021999,7]
[339233940,1727387441330,-151.0,0.00021999,7]
[339233941,1727387441341,-509.68535942,0.00021999,120]
[339233942,1727387441352,-500.0,0.00021999,120]
[339233945,1727387441362,-500.0,0.00021999,120]
[339233946,1727387441526,-500.0,0.00021999,120]
[339233947,1727387441536,-260.8141802,0.00021999,120]
[339233948,1727387441545,-500.0,0.00021999,120]
[339233949,1727387441554,-505.83924349,0.00021999,120]
[339233950,1727387441565,-500.0,0.00021999,120]
[339233951,1727387441574,-500.0,0.00021999,120]
[339233952,1727387441583,-500.0,0.00021999,120]
[339233953,1727387441592,-500.0,0.00021999,120]
[339233954,1727387441603,-500.0,0.00021999,120]
[339233955,1727387441612,-224.43052595,0.00021999,120]
[339233956,1727387441621,-500.0,0.00021999,120]
[339233957,1727387441631,-505.24527036,0.00021999,120]
[339233958,1727387441640,-500.0,0.00021999,120]
[339233959,1727387441650,-151.0,0.00021999,7]
[339233960,1727387441659,-151.0,0.00021999,7]
[339233961,1727387441669,-151.0,0.00021999,7]
[339233962,1727387441678,-151.0,0.00021999,7]
[339233963,1727387441687,-151.0,0.00021999,7]
[339233964,1727387441697,-195.676887,0.00021999,7]
[339233965,1727387441707,-534.59752582,0.00021999,120]
[339233966,1727387441718,-500.0,0.00021999,2]
[339233967,1727387441727,-500.0,0.00021999,2]
[339233968,1727387441737,-500.0,0.00021999,2]
[339233969,1727387441746,-500.0,0.00021999,2]
[339233970,1727387441755,-500.0,0.00021999,2]
[339233971,1727387441764,-500.0,0.00021999,2]
[339233972,1727387441773,-500.0,0.00021999,2]
[339233973,1727387441782,-500.0,0.00021999,2]
[339233974,1727387441791,-500.0,0.00021999,2]
[339233975,1727387441800,-500.0,0.00021999,2]
[339233976,1727387441810,-500.0,0.00021999,2]
[339233977,1727387441819,-613.92892393,0.00021999,2]